bitfinex/quotes_SOLUSD_20240605
["timestamp","ask_amount","ask_price","bid_price","bid_amount"]
[1717602677453,27.8283,174.87,174.81,22.46626991]
[1717602677641,20.7783,174.87,174.81,29.51626991]
[1717602677844,20.7783,174.87,174.81,7.05]
[1717602678372,20.7783,174.87,174.83,2.1162]
[1717602679153,20.7783,174.87,174.82,2.1164]
[1717602679357,20.7783,174.87,174.82,47.1164]
[1717602679673,27.8283,174.87,174.82,47.1163]
[1717602679877,20.7783,174.87,174.83,2.1162]
[1717602680059,20.7783,174.87,174.83,47.1162]
[1717602680369,20.7783,174.87,174.83,69.58246991]
[1717602680569,20.7783,174.87,174.83,47.1162]
[1717602680779,20.7783,174.87,174.83,67.46626991]
[1717602680976,20.7783,174.87,174.83,45.0]
[1717602681685,20.7783,174.87,174.83,47.1163]
[1717602681854,7.05,174.86,174.83,47.1163]
[1717602682053,16.4493,174.81,174.8,14.30499114]
[1717602682262,29.4174,174.81,174.73,29.51626991]
[1717602682551,29.4174,174.81,174.71,7.05]
[1717602682552,22.1401,174.77,174.71,7.05]
[1717602682879,22.1401,174.77,174.71,2.1177]
[1717602682880,7.05,174.75,174.71,2.1177]
[1717602683168,7.05,174.75,174.7,36.77944937]
[1717602683394,7.05,174.75,174.7,14.31317946]
[1717602683677,7.05,174.71,174.7,14.31317946]
[1717602684181,27.6289,174.71,174.7,14.31317946]
[1717602686874,20.5789,174.71,174.7,14.31317946]
[1717602687072,27.6289,174.71,174.7,14.31317946]
[1717602688491,20.5789,174.71,174.7,14.31317946]
[1717602688695,27.6289,174.71,174.7,14.31317946]
[1717602689771,35.0189,174.71,174.56,264.5758]
[1717602689968,7.05,174.61,174.6,11.84107621]
[1717602690784,7.05,174.61,174.6,13.96017621]
[1717602692375,2.1182,174.68,174.6,58.96017621]
[1717602692578,30.318,174.69,174.61,56.84039806]
[1717602692785,2.2881,174.68,174.62,11.83972]
[1717602693098,7.05,174.63,174.62,11.83972]
[1717602693305,7.05,174.63,174.62,56.83972]
[1717602693481,7.05,174.63,174.59,0.8166447]
[1717602693683,7.05,174.6,174.59,0.8166447]
[1717602694299,14.9976,174.68,174.59,0.8166447]
[1717602694300,23.4328,174.62,174.59,0.8166447]
[1717602694482,14.1,174.6,174.59,0.8166447]
[1717602695413,21.65609008,174.64,174.59,0.8166447]
[1717602695601,7.05,174.6,174.59,0.8166447]
[1717602696923,27.23419008,174.64,174.59,0.8166447]
[1717602697090,7.05,174.6,174.59,0.8166447]
[1717602698005,14.1,174.6,174.59,0.8166447]
[1717602698386,35.25,174.6,174.59,0.8166447]
[1717602699506,35.25,174.6,174.49,27.54442783]
[1717602699709,7.05,174.56,174.5,7.05]
[1717602700017,7.05,174.56,174.51,26.1273]
[1717602700212,7.05,174.56,174.52,20.0]
[1717602700383,28.2,174.6,174.53,45.0]
[1717602700589,7.05,174.57,174.53,45.0]
[1717602700789,7.05,174.57,174.53,51.317]
[1717602702693,7.05,174.56,174.53,51.317]
[1717602703088,7.05,174.56,174.54,6.1403]
[1717602703287,21.6291,174.68,174.55,72.22]
[1717602703505,7.05,174.62,174.56,0.17]
[1717602703689,38.13359896,174.68,174.56,45.0]
[1717602703690,27.54269896,174.68,174.56,45.0]
[1717602703889,7.05,174.57,174.56,45.0]
[1717602704623,2.1189,174.62,174.56,45.0]
[1717602704832,7.05,174.58,174.56,45.0]
[1717602705009,7.05,174.59,174.56,45.0]
[1717602705318,7.05,174.6,174.56,45.0]
[1717602705517,7.05,174.59,174.56,45.0]
[1717602705688,5.5781,174.78,174.58,51.43]
[1717602705889,22.8426,174.81,174.7,7.05]
[1717602705890,20.7258,174.81,174.7,7.05]
[1717602706095,7.05,174.77,174.71,45.0]
[1717602706290,2.1166,174.81,174.72,7.05]
[1717602706515,26.29558719,174.87,174.74,7.05]
[1717602706713,7.05,174.79,174.75,45.0]
[1717602706918,7.05,174.79,174.73,52.05]
[1717602707290,5.90081958,174.86,174.73,45.0]
[1717602707912,2.1163,174.83,174.75,51.3847]
[1717602708119,2.1163,174.83,174.76,45.0]
[1717602708535,2.1164,174.82,174.76,45.0]
[1717602709239,2.1163,174.83,174.76,45.0]
[1717602709549,2.1165,174.82,174.76,45.0]
[1717602709719,2.1166,174.81,174.76,45.0]
[1717602710115,2.1164,174.82,174.76,45.0]
[1717602710334,27.11081958,174.86,174.76,45.0]
[1717602710535,2.1167,174.8,174.76,45.0]
[1717602711052,2.1167,174.8,174.7,6.0091]
[1717602711053,25.4427,174.83,174.7,6.0091]
[1717602711228,2.1168,174.8,174.7,6.0091]
[1717602711433,2.1166,174.81,174.75,73.81053392]
[1717602711733,2.1167,174.8,174.74,73.81053392]
[1717602712242,2.1168,174.79,174.74,73.81053392]
[1717602712442,2.1168,174.79,174.75,45.0]
[1717602712739,2.1166,174.81,174.75,45.0]
[1717602713043,2.1164,174.82,174.75,45.0]
[1717602713244,2.1164,174.82,174.79,73.81053392]
[1717602713537,2.1164,174.82,174.8,45.0]
[1717602713714,2.1165,174.81,174.8,45.0]
[1717602714535,2.1165,174.81,174.7,6.0091]
[1717602714536,25.4428,174.83,174.76,73.81053392]
[1717602714849,25.4428,174.83,174.7,6.0091]
[1717602715144,25.4428,174.83,174.76,73.81053392]
[1717602715347,25.4428,174.83,174.75,73.81053392]
[1717602715527,2.1169,174.78,174.7,6.0091]
[1717602715728,2.1169,174.78,174.75,73.81053392]
[1717602716268,2.117,174.77,174.7,6.0091]
[1717602716423,2.117,174.77,174.73,73.81053392]
[1717602716846,2.117,174.77,174.63,8.67700848]
[1717602717051,2.1171,174.76,174.67,20.0]
[1717602717251,2.1173,174.75,174.67,20.0]
[1717602717644,2.1173,174.75,174.68,45.0]
[1717602717950,2.1174,174.74,174.66,6.3558]
[1717602718153,2.1175,174.73,174.7,73.81053392]
[1717602718339,2.1175,174.73,174.68,73.81053392]
[1717602718536,2.1175,174.73,174.59,21.21]
[1717602718537,2.1178,174.71,174.67,73.81053392]
[1717602718745,2.1178,174.71,174.62,6.3558]
[1717602719051,2.1177,174.72,174.62,6.3558]
[1717602719360,2.1177,174.72,174.66,73.81053392]
[1717602719561,2.1179,174.7,174.64,73.81053392]
[1717602719968,2.118,174.69,174.64,73.81053392]
[1717602720263,2.118,174.69,174.58,11.7926]
[1717602720657,4.2353,174.72,174.63,73.81053392]
[1717602720658,2.1181,174.68,174.63,73.81053392]
[1717602720842,2.1181,174.68,174.58,6.0676]
[1717602720843,2.1182,174.68,174.58,6.0676]
[1717602721042,2.1182,174.68,174.63,73.81053392]
[1717602721243,2.1182,174.68,174.58,6.0676]
[1717602721465,2.1182,174.68,174.63,73.81053392]
[1717602721676,2.1183,174.67,174.62,73.81053392]
[1717602721843,2.1182,174.68,174.63,73.81053392]
[1717602722167,2.118,174.69,174.63,73.81053392]
[1717602722375,2.1181,174.68,174.62,73.81053392]
[1717602722555,2.1183,174.67,174.62,73.81053392]
[1717602722977,2.1183,174.67,174.58,6.0676]
[1717602723266,2.1183,174.67,174.63,118.81053392]
[1717602723466,2.1183,174.67,174.64,73.81053392]
[1717602723641,2.1181,174.68,174.63,45.0]
[1717602723846,21.21,174.71,174.63,45.0]
[1717602724050,2.1182,174.68,174.63,118.81053392]
[1717602724260,2.1183,174.67,174.63,45.0]
[1717602725056,2.1183,174.67,174.58,6.0676]
[1717602725265,2.1184,174.66,174.58,6.0676]
[1717602725566,2.1184,174.66,174.55,6.5532]
[1717602725757,2.1184,174.66,174.56,20.0]
[1717602725959,33.4169,174.7,174.56,20.0]
[1717602725960,2.1183,174.67,174.56,20.0]
[1717602726264,23.3282,174.68,174.57,0.17]
[1717602726462,23.3282,174.68,174.57,45.34]
[1717602726650,2.1182,174.68,174.57,45.34]
[1717602726847,22.8272,174.7,174.57,45.34]
[1717602726848,2.1178,174.71,174.57,45.34]
[1717602727065,2.1179,174.7,174.58,20.0]
[1717602727279,2.1178,174.71,174.59,46.69735564]
[1717602727489,25.4451,174.73,174.59,46.69735564]
[1717602727672,2.118,174.69,174.59,46.69735564]
[1717602727890,4.2354,174.72,174.59,46.69735564]
[1717602728097,27.5638,174.7,174.59,45.34]
[1717602728261,2.1184,174.66,174.59,45.17]
[1717602728465,2.1184,174.66,174.59,45.0]
[1717602728877,2.1185,174.65,174.59,45.0]
[1717602729076,2.1185,174.65,174.55,6.5532]
[1717602729391,2.1185,174.65,174.56,20.0]
[1717602729794,2.1184,174.66,174.56,20.0]
[1717602729977,2.1185,174.65,174.56,20.0]
[1717602730181,2.1189,174.62,174.51,264.2753]
[1717602730377,2.1189,174.62,174.51,6.1753]
[1717602730791,2.119,174.61,174.51,6.1753]
[1717602731002,25.4474,174.64,174.51,6.1753]
[1717602731003,2.1189,174.62,174.51,6.1753]
[1717602731174,2.119,174.61,174.51,6.1753]
[1717602731696,2.1191,174.6,174.51,6.1753]
[1717602732388,2.1192,174.59,174.52,20.0]
[1717602732691,2.1192,174.59,174.47,20.0]
[1717602733068,2.1191,174.6,174.48,45.0]
[1717602733297,2.1189,174.62,174.49,20.0]
[1717602733478,2.119,174.61,174.5,45.0]
[1717602733791,2.1188,174.62,174.51,20.34]
[1717602733985,6.1147,174.65,174.52,45.0]
[1717602734181,2.1189,174.62,174.53,0.34]
[1717602734588,2.119,174.61,174.53,0.34]
[1717602735186,2.119,174.61,174.52,45.0]
[1717602736778,2.1191,174.6,174.52,45.0]
[1717602737393,2.1188,174.63,174.52,45.0]
[1717602737573,2.1189,174.62,174.52,45.0]
[1717602737771,2.119,174.61,174.52,45.0]
[1717602737971,2.1189,174.62,174.52,45.0]
[1717602738210,4.2373,174.64,174.52,45.0]
[1717602738211,2.119,174.61,174.52,45.0]
[1717602739279,2.1191,174.6,174.52,45.0]
[1717602740714,2.1192,174.59,174.52,45.0]
[1717602740991,2.1191,174.6,174.51,20.0]
[1717602741214,2.1191,174.6,174.47,20.0]
[1717602741875,2.1189,174.62,174.47,37.15]
[1717602742412,2.119,174.61,174.48,0.17]
[1717602742604,2.119,174.61,174.48,45.17]
[1717602742803,2.119,174.61,174.49,20.0]
[1717602743008,2.119,174.61,174.5,45.34]
[1717602743211,2.1191,174.6,174.51,20.0]
[1717602743417,2.1192,174.6,174.52,45.0]
[1717602745009,2.119,174.61,174.52,45.0]
[1717602745604,2.1191,174.6,174.52,45.0]
[1717602746409,2.119,174.61,174.52,45.0]
[1717602746808,2.1191,174.6,174.52,45.0]
[1717602747408,2.1189,174.62,174.52,45.0]
[1717602747801,2.119,174.61,174.52,45.0]
[1717602748822,2.1191,174.6,174.52,45.0]
[1717602749306,2.119,174.61,174.52,45.0]
[1717602749731,2.1191,174.6,174.52,45.0]
[1717602750046,2.1191,174.6,174.53,0.34]
[1717602750318,2.119,174.61,174.53,0.34]
[1717602750928,2.1191,174.6,174.53,0.34]
[1717602751223,2.1191,174.6,174.52,45.0]
[1717602752220,2.119,174.61,174.52,45.0]
[1717602753523,2.1188,174.63,174.52,45.0]
[1717602753725,2.1188,174.63,174.53,0.34]
[1717602754028,2.1188,174.62,174.53,0.34]
[1717602754198,2.119,174.61,174.53,0.34]
[1717602754900,2.1192,174.59,174.51,20.0]
[1717602755115,2.1192,174.59,174.47,20.0]
[1717602755709,2.1193,174.58,174.47,20.0]
[1717602755921,2.1193,174.59,174.47,20.0]
[1717602756313,29.686,174.62,174.47,20.0]
[1717602756314,2.1191,174.6,174.47,37.17]
[1717602756512,2.1191,174.6,174.48,45.17]
[1717602756707,2.1191,174.6,174.49,20.0]
[1717602757020,2.1191,174.6,174.5,45.17]
[1717602757220,2.1191,174.6,174.51,20.17]
[1717602757431,2.1191,174.6,174.52,45.17]
[1717602757609,2.1191,174.6,174.53,0.17]
[1717602758527,2.1192,174.6,174.53,0.17]
[1717602758830,2.1192,174.59,174.53,0.17]
[1717602759123,2.119,174.61,174.53,0.17]
[1717602759929,2.1191,174.6,174.53,0.17]
[1717602760539,2.1192,174.59,174.53,0.17]
[1717602760908,2.1191,174.6,174.53,0.17]
[1717602761128,2.1192,174.59,174.53,0.17]
[1717602761314,2.1191,174.6,174.53,0.17]
[1717602761920,2.1191,174.6,174.52,45.17]
[1717602763029,2.1192,174.59,174.52,45.17]
[1717602763814,2.1191,174.6,174.53,0.17]
[1717602765722,2.1192,174.59,174.53,0.17]
[1717602766946,2.1192,174.59,174.52,45.0]
[1717602767123,2.1194,174.58,174.52,45.0]
[1717602767325,8.4287,174.58,174.44,29.63283558]
[1717602767532,8.4287,174.58,174.47,20.0]
[1717602768439,6.3093,174.58,174.47,20.0]
[1717602768849,6.3093,174.58,174.48,45.34]
[1717602769137,8.4286,174.58,174.49,20.0]
[1717602769333,8.4286,174.58,174.5,45.34]
[1717602769622,2.1195,174.57,174.49,20.0]
[1717602769841,2.1198,174.55,174.45,20.0]
[1717602770219,2.1196,174.56,174.45,20.0]
[1717602770845,2.1196,174.56,174.46,0.17]
[1717602771045,2.1196,174.56,174.46,0.34]
[1717602771226,2.1196,174.56,174.46,45.34]
[1717602771420,2.1196,174.56,174.47,20.0]
[1717602771619,2.1195,174.57,174.48,45.34]
[1717602771942,2.1195,174.57,174.49,20.0]
[1717602772138,2.1195,174.57,174.5,45.0]
[1717602772330,8.4287,174.58,174.5,45.0]
[1717602773333,8.4287,174.58,174.51,0.17]
[1717602773836,7.09,174.55,174.51,0.17]
[1717602774042,8.4287,174.58,174.51,0.17]
[1717602774343,7.09,174.55,174.51,0.34]
[1717602775773,8.4286,174.58,174.51,0.34]
[1717602776445,7.09,174.54,174.51,0.34]
[1717602776833,7.09,174.54,174.51,0.17]
[1717602778541,7.09,174.54,174.5,45.0]
[1717602779951,6.6077,174.53,174.49,20.0]
[1717602780162,25.2581,174.57,174.46,7.09]
[1717602780328,7.09,174.53,174.47,20.0]
[1717602780729,7.09,174.52,174.47,20.0]
[1717602780931,7.09,174.52,174.46,7.09]
[1717602781148,7.09,174.52,174.47,20.17]
[1717602781332,7.09,174.52,174.48,45.0]
[1717602781535,7.09,174.51,174.48,45.0]
[1717602781738,25.2581,174.57,174.49,0.17]
[1717602782053,7.09,174.52,174.49,0.34]
[1717602782729,25.2581,174.57,174.49,0.34]
[1717602782946,7.09,174.52,174.49,0.34]
[1717602783341,7.09,174.53,174.49,0.34]
[1717602786957,7.09,174.52,174.49,0.34]
[1717602787453,7.09,174.53,174.49,0.34]
[1717602789048,7.09,174.54,174.49,0.34]
[1717602790751,7.09,174.53,174.49,0.34]
[1717602791062,13.1667,174.54,174.49,0.34]
[1717602791448,7.09,174.53,174.49,0.34]
[1717602794374,7.09,174.52,174.49,0.34]
[1717602795438,7.09,174.53,174.49,0.17]
[1717602795637,7.09,174.52,174.48,45.0]
[1717602795840,7.09,174.51,174.48,45.0]
[1717602799342,7.09,174.51,174.5,33.4947671]
[1717602799541,7.09,174.51,174.5,45.0]
[1717602800242,13.1966,174.53,174.5,45.0]
[1717602800577,13.1966,174.53,174.52,33.4947671]
[1717602800740,13.1966,174.53,174.52,45.0]
[1717602801443,13.1966,174.53,174.52,78.4947671]
[1717602801643,13.1966,174.53,174.52,45.0]
[1717602802455,7.09,174.54,174.53,33.4947671]
[1717602802670,7.09,174.54,174.53,45.0]
[1717602803302,7.09,174.54,174.53,78.4947671]
[1717602803454,7.09,174.54,174.53,45.0]
[1717602803653,7.09,174.54,174.53,78.4947671]
[1717602803977,7.09,174.54,174.53,45.0]
[1717602804281,7.09,174.54,174.53,78.4947671]
[1717602804462,7.09,174.54,174.53,45.0]
[1717602804980,7.09,174.54,174.53,78.4947671]
[1717602805353,7.09,174.54,174.53,45.0]
[1717602805882,7.09,174.54,174.53,78.4947671]
[1717602806181,7.09,174.54,174.53,45.0]
[1717602806382,7.09,174.54,174.53,78.4947671]
[1717602806673,7.09,174.54,174.53,45.0]
[1717602807092,7.09,174.54,174.53,78.4947671]
[1717602807255,7.09,174.54,174.53,45.0]
[1717602807456,7.09,174.54,174.53,78.4947671]
[1717602807652,22.4199,174.56,174.53,45.0]
[1717602807858,7.09,174.54,174.53,45.0]
[1717602808578,2.1195,174.57,174.54,33.4947671]
[1717602808781,8.1456,174.57,174.55,45.0]
[1717602808980,7.09,174.56,174.55,45.0]
[1717602809278,15.6698,174.56,174.54,45.0]
[1717602809480,7.09,174.55,174.54,78.4947671]
[1717602809673,7.09,174.55,174.54,45.0]
[1717602809886,7.09,174.55,174.54,78.4947671]
[1717602810075,7.09,174.55,174.54,45.0]
[1717602810378,7.09,174.55,174.54,78.4947671]
[1717602812183,6.4602,174.56,174.54,45.0]
[1717602812386,7.09,174.55,174.54,45.0]
[1717602812685,8.5165,174.58,174.54,45.0]
[1717602812862,20.6319,174.61,174.54,45.0]
[1717602813065,7.09,174.57,174.54,45.0]
[1717602813279,7.09,174.56,174.54,45.0]
[1717602813469,7.09,174.55,174.54,45.0]
[1717602814472,2.1193,174.58,174.54,45.0]
[1717602814672,7.09,174.55,174.54,45.0]
[1717602815371,28.36,174.6,174.54,45.0]
[1717602815372,2.1193,174.59,174.54,45.0]
[1717602815589,7.09,174.55,174.54,45.0]
[1717602829689,6.5122,174.58,174.54,45.0]
[1717602830002,7.09,174.55,174.43,4.64661668]
[1717602830208,7.09,174.51,174.45,7.09]
[1717602830417,7.09,174.51,174.42,6.0156]
[1717602830707,7.09,174.51,174.45,7.09]
[1717602831178,7.09,174.51,174.46,71.7713]
[1717602831591,7.09,174.5,174.46,71.7713]
[1717602831899,7.09,174.51,174.46,71.7713]
[1717602832100,7.09,174.52,174.46,78.8613]
[1717602832623,21.3219,174.57,174.47,7.09]
[1717602832787,7.09,174.53,174.48,65.34]
[1717602833107,7.09,174.53,174.48,71.8649]
[1717602834310,7.09,174.54,174.48,71.8649]
[1717602834777,5.95641332,174.6,174.48,71.8649]
[1717602834977,7.09,174.58,174.48,71.8649]
[1717602835195,7.09,174.58,174.52,7.09]
[1717602835397,7.09,174.58,174.53,45.34]
[1717602835717,7.09,174.61,174.54,7.09]
[1717602835912,7.09,174.61,174.55,45.34]
[1717602836800,7.09,174.6,174.55,45.34]
[1717602837293,7.09,174.59,174.55,45.17]
[1717602837493,5.95546135,174.64,174.55,45.17]
[1717602837494,2.1188,174.63,174.55,0.17]
[1717602837683,7.09,174.59,174.55,0.17]
[1717602838006,7.09,174.59,174.55,0.34]
[1717602839686,7.09,174.59,174.55,0.17]
[1717602841012,7.09,174.59,174.54,45.0]
[1717602841192,7.09,174.56,174.48,6.1361]
[1717602841389,7.09,174.54,174.48,6.1361]
[1717602841592,2.1195,174.57,174.48,6.1361]
[1717602841593,7.09,174.53,174.48,6.1361]
[1717602841801,7.09,174.54,174.48,6.1361]
[1717602842513,7.09,174.55,174.49,7.09]
[1717602842896,2.1193,174.59,174.5,0.17]
[1717602843095,7.09,174.55,174.5,0.17]
[1717602843317,2.1193,174.59,174.5,0.17]
[1717602843604,0.3644,174.69,174.5,0.17]
[1717602843605,7.09,174.58,174.52,7.09]
[1717602843804,7.09,174.58,174.53,45.34]
[1717602844504,2.1187,174.63,174.54,7.09]
[1717602844708,7.09,174.6,174.55,45.17]
[1717602845512,2.1187,174.63,174.55,45.17]
[1717602846112,7.09,174.61,174.55,45.17]
[1717602846801,8.2663,174.64,174.55,45.17]
[1717602847198,7.09,174.61,174.55,45.17]
[1717602848207,6.1477,174.64,174.55,45.17]
[1717602848525,7.09,174.61,174.55,45.17]
[1717602850310,18.6282,174.65,174.55,45.17]
[1717602850686,7.09,174.61,174.55,45.17]
[1717602851706,7.09,174.6,174.55,51.2747]
[1717602852618,7.09,174.59,174.55,51.2747]
[1717602853296,2.1187,174.64,174.55,51.2747]
[1717602853809,2.1185,174.65,174.55,45.17]
[1717602854020,6.0348,174.68,174.56,7.26]
[1717602854188,7.09,174.62,174.57,51.1047]
[1717602854513,8.07052406,174.67,174.57,51.1047]
[1717602854705,6.0348,174.68,174.57,51.1047]
[1717602854706,6.0348,174.68,174.58,6.1047]
[1717602854895,8.153,174.68,174.59,45.0]
[1717602855213,7.09,174.64,174.59,51.5885]
[1717602855395,2.1181,174.68,174.59,51.5885]
[1717602855603,7.09,174.65,174.6,6.5885]
[1717602855906,28.7244,174.69,174.61,45.0]
[1717602856105,0.3644,174.69,174.61,45.0]
[1717602856306,7.09,174.65,174.6,51.7819]
[1717602856517,7.09,174.66,174.61,6.6119]
[1717602856703,7.09,174.66,174.62,45.0]
[1717602858598,7.09,174.66,174.62,6.5589]
[1717602858797,7.09,174.66,174.63,45.0]
[1717602859217,7.09,174.67,174.63,45.0]
[1717602860421,7.09,174.66,174.63,45.0]
[1717602861003,0.3644,174.69,174.63,45.0]
[1717602861218,7.09,174.67,174.63,45.0]
[1717602863817,0.3644,174.69,174.63,51.1945]
[1717602864019,7.09,174.67,174.63,51.1945]
[1717602864915,7.09,174.65,174.58,6.1945]
[1717602865110,0.3644,174.69,174.58,6.1945]
[1717602865111,9.5725,174.69,174.59,20.0]
[1717602865304,7.09,174.61,174.54,6.1945]
[1717602865620,7.09,174.6,174.54,6.1945]
[1717602865828,7.09,174.6,174.54,13.2845]
[1717602866735,7.09,174.6,174.55,20.0]
[1717602867832,7.09,174.6,174.56,45.17]
[1717602868808,7.09,174.62,174.56,51.5244]
[1717602870028,7.09,174.61,174.56,51.5244]
[1717602871305,7.09,174.61,174.56,45.17]
[1717602871534,7.09,174.62,174.56,51.5244]
[1717602874013,21.86760549,174.68,174.56,51.5244]
[1717602874332,7.09,174.62,174.57,6.7909]
[1717602874551,7.09,174.62,174.58,45.0]
[1717602874715,7.09,174.63,174.58,45.0]
[1717602875230,7.09,174.63,174.62,5.88674135]
[1717602875411,7.09,174.63,174.62,50.88674135]
[1717602875613,7.09,174.63,174.62,45.0]
[1717602875842,21.86760549,174.68,174.62,50.88674135]
[1717602876013,7.09,174.63,174.62,50.88674135]
[1717602876625,7.09,174.63,174.51,21.2067]
[1717602876811,7.09,174.57,174.51,13.1778]
[1717602877027,7.09,174.57,174.56,5.88674135]
[1717602877437,7.09,174.57,174.51,13.1778]
[1717602877650,7.09,174.57,174.56,5.88674135]
[1717602878062,7.09,174.57,174.52,5.88674135]
[1717602878369,7.09,174.55,174.53,5.88674135]
[1717602878737,7.09,174.55,174.47,22.0179]
[1717602878738,7.09,174.55,174.48,7.09]
[1717602878938,7.09,174.55,174.53,5.88674135]
[1717602879244,9.2091,174.6,174.53,5.88674135]
[1717602879245,28.36,174.6,174.53,5.88674135]
[1717602879551,28.36,174.6,174.48,7.09]
[1717602879727,28.36,174.6,174.53,5.88674135]
[1717602880334,28.36,174.6,174.54,45.0]
[1717602884230,28.36,174.6,174.54,50.88674135]
[1717602884555,28.36,174.6,174.54,45.0]
[1717602884763,16.261,174.61,174.54,45.0]
[1717602884931,7.09,174.56,174.54,45.0]
[1717602885527,7.09,174.55,174.54,45.0]
[1717602885957,28.36,174.6,174.54,45.0]
[1717602886264,7.09,174.55,174.54,45.0]
[1717602892150,7.09,174.55,174.49,0.4484385]
[1717602892481,7.09,174.52,174.49,0.4484385]
[1717602893137,7.09,174.5,174.49,0.4484385]
[1717602894578,7.09,174.5,174.49,2.5688385]
[1717602898054,7.09,174.5,174.49,0.4484385]
[1717602898657,7.09,174.5,174.49,2.5688385]
[1717602899775,7.09,174.5,174.49,0.4484385]
[1717602901973,6.0963,174.54,174.5,2.1203]
[1717602901974,6.2982,174.54,174.5,2.1203]
[1717602902147,7.09,174.51,174.5,2.1203]
[1717602902547,7.09,174.51,174.49,0.4484385]
[1717602902756,7.09,174.5,174.49,0.4484385]
[1717602904072,8.5915,174.53,174.49,0.4484385]
[1717602904504,18.126,174.54,174.49,0.4484385]
[1717602904783,7.09,174.5,174.49,0.4484385]
[1717602907985,2.1198,174.54,174.49,0.4484385]
[1717602908161,7.09,174.5,174.49,2.5688385]
[1717602908866,8.08024135,174.55,174.5,2.1203]
[1717602909067,7.09,174.51,174.5,2.1203]
[1717602909268,14.18,174.51,174.49,0.4484385]
[1717602909470,9.2103,174.5,174.49,0.4484385]
[1717602910079,7.09,174.5,174.49,0.4484385]
[1717602914566,9.2103,174.5,174.49,0.4484385]
[1717602914765,7.09,174.5,174.49,0.4484385]
[1717602918408,9.2103,174.5,174.49,0.4484385]
[1717602920590,7.09,174.5,174.49,0.4484385]
[1717602922060,9.2103,174.5,174.49,0.4484385]
[1717602923782,7.09,174.5,174.49,0.4484385]
[1717602925284,9.2103,174.5,174.49,0.4484385]
[1717602925491,7.09,174.5,174.49,0.4484385]
[1717602925691,9.2103,174.5,174.49,0.4484385]
[1717602926797,26.4737,174.5,174.49,0.4484385]
[1717602926974,20.1127,174.5,174.49,0.4484385]
[1717602927577,15.8721,174.5,174.49,0.4484385]
[1717602927776,20.1127,174.5,174.49,0.4484385]
[1717602928277,19.9427,174.5,174.49,0.4484385]
[1717602929678,20.1127,174.5,174.49,0.4484385]
[1717602930292,15.8721,174.5,174.49,0.4484385]
[1717602930502,15.7021,174.5,174.49,0.4484385]
[1717602932785,19.9427,174.5,174.49,0.4484385]
[1717602933428,15.7021,174.5,174.49,0.4484385]
[1717602934098,2.1202,174.51,174.49,0.4484385]
[1717602934286,9.2103,174.5,174.49,0.4484385]
[1717602935280,25.03828038,174.53,174.49,0.4484385]